[Event "Titled Tuesday Blitz February 07 Late 2023"]
[White "Vega Gutierrez, Sabrina"]
[Black "Vlassov, Nikolai"]
[WhiteFideId "2219026"]
[BlackFideId "4103360"]
[WhiteElo "2377"]
[BlackElo "2283"]
[Result "0-1"]
[Round "04"]
[TimeControl "180+2"]
[Date "2023.02.07"]
[WhiteClock "0:00:01"]
[BlackClock "0:00:39"]

1. e4 {[%clk 0:03:00]}  Nc6 {[%clk 0:02:59]} 2. d4 {[%clk 0:03:00]}  d5 {[%clk 0:02:59]} 3. exd5 {[%clk 0:02:57]}  Qxd5 {[%clk 0:02:58]} 4. Nf3 {[%clk 0:02:58]}  Bg4 {[%clk 0:02:57]} 5. Be2 {[%clk 0:02:59]}  O-O-O {[%clk 0:02:57]} 6. c4 {[%clk 0:02:57]}  Qh5 {[%clk 0:02:56]} 7. Be3 {[%clk 0:02:55]}  e5 {[%clk 0:02:40]} 8. d5 {[%clk 0:02:48]}  e4 {[%clk 0:02:40]} 9. Nd4 {[%clk 0:01:57]}  Bxe2 {[%clk 0:02:35]} 10. Nxe2 {[%clk 0:01:51]}  Ne5 {[%clk 0:02:31]} 11. Qa4 {[%clk 0:01:31]}  Nd3+ {[%clk 0:02:17]} 12. Kd2 {[%clk 0:01:28]}  Nxb2 {[%clk 0:02:01]} 13. Qb3 {[%clk 0:01:21]}  Nd3 {[%clk 0:01:59]} 14. Nbc3 {[%clk 0:01:18]}  f5 {[%clk 0:01:39]} 15. Rab1 {[%clk 0:01:06]}  Bb4 {[%clk 0:01:34]} 16. a3 {[%clk 0:01:02]}  Bxc3+ {[%clk 0:01:34]} 17. Nxc3 {[%clk 0:01:02]}  b6 {[%clk 0:01:34]} 18. c5 {[%clk 0:00:52]}  Nf6 {[%clk 0:01:08]} 19. d6 {[%clk 0:00:49]}  f4 {[%clk 0:00:55]} 20. Bd4 {[%clk 0:00:48]}  Nxc5 {[%clk 0:00:55]} 21. Bxc5 {[%clk 0:00:35]}  Qxc5 {[%clk 0:00:53]} 22. Qe6+ {[%clk 0:00:24]}  Kb8 {[%clk 0:00:43]} 23. Nxe4 {[%clk 0:00:05]}  Nxe4+ {[%clk 0:00:42]} 24. Qxe4 {[%clk 0:00:06]}  Rhe8 {[%clk 0:00:41]} 25. Qf3 {[%clk 0:00:01]}  Rxd6+ {[%clk 0:00:39]} 0-1


[Site "https://www.chess.com"]

[Event "Titled Tuesday Blitz February 07 Late 2023"]
[White "Dzierzak, Radoslaw"]
[Black "Manukyan, Sargis A."]
[WhiteFideId "1161407"]
[BlackFideId "13303970"]
[WhiteElo "2220"]
[BlackElo "2158"]
[Result "1/2-1/2"]
[Round "04"]
[TimeControl "180+2"]
[Date "2023.02.07"]
[WhiteClock "0:00:13"]
[BlackClock "0:00:42"]

1. e4 {[%clk 0:03:00]}  c5 {[%clk 0:02:59]} 2. Nf3 {[%clk 0:03:01]}  d6 {[%clk 0:02:59]} 3. d4 {[%clk 0:03:01]}  cxd4 {[%clk 0:03:00]} 4. Nxd4 {[%clk 0:03:02]}  Nf6 {[%clk 0:03:00]} 5. Nc3 {[%clk 0:03:03]}  g6 {[%clk 0:03:01]} 6. g3 {[%clk 0:03:03]}  Bg7 {[%clk 0:03:01]} 7. Bg2 {[%clk 0:03:04]}  O-O {[%clk 0:03:01]} 8. O-O {[%clk 0:03:04]}  Nc6 {[%clk 0:02:59]} 9. Nde2 {[%clk 0:03:05]}  Be6 {[%clk 0:02:57]} 10. h3 {[%clk 0:03:00]}  Rb8 {[%clk 0:02:57]} 11. a4 {[%clk 0:02:59]}  a6 {[%clk 0:02:57]} 12. Be3 {[%clk 0:02:52]}  b5 {[%clk 0:02:56]} 13. axb5 {[%clk 0:02:51]}  axb5 {[%clk 0:02:57]} 14. Nd5 {[%clk 0:02:52]}  Bxd5 {[%clk 0:02:54]} 15. exd5 {[%clk 0:02:52]}  Ne5 {[%clk 0:02:55]} 16. b3 {[%clk 0:02:49]}  Ra8 {[%clk 0:02:49]} 17. Qd2 {[%clk 0:02:37]}  Qc7 {[%clk 0:02:46]} 18. Nd4 {[%clk 0:02:25]}  Qb7 {[%clk 0:02:39]} 19. Nc6 {[%clk 0:01:53]}  Nxc6 {[%clk 0:02:29]} 20. dxc6 {[%clk 0:01:54]}  Qc7 {[%clk 0:02:29]} 21. Rxa8 {[%clk 0:01:18]}  Rxa8 {[%clk 0:02:28]} 22. Qb4 {[%clk 0:01:18]}  Rb8 {[%clk 0:02:13]} 23. Ra1 {[%clk 0:00:59]}  Nd5 {[%clk 0:02:03]} 24. Ra7 {[%clk 0:00:59]}  Qxc6 {[%clk 0:01:48]} 25. Bxd5 {[%clk 0:00:49]}  Qxd5 {[%clk 0:01:47]} 26. Rxe7 {[%clk 0:00:49]}  Ra8 {[%clk 0:01:37]} 27. Ra7 {[%clk 0:00:49]}  Rxa7 {[%clk 0:01:32]} 28. Bxa7 {[%clk 0:00:48]}  Be5 {[%clk 0:01:31]} 29. Qe1 {[%clk 0:00:37]}  Qf3 {[%clk 0:01:26]} 30. Be3 {[%clk 0:00:21]}  h5 {[%clk 0:01:26]} 31. h4 {[%clk 0:00:20]}  Qe4 {[%clk 0:01:23]} 32. Qd2 {[%clk 0:00:18]}  d5 {[%clk 0:01:21]} 33. Qd3 {[%clk 0:00:18]}  Qf3 {[%clk 0:01:06]} 34. Bc5 {[%clk 0:00:11]}  Qxd3 {[%clk 0:00:56]} 35. cxd3 {[%clk 0:00:12]}  Kg7 {[%clk 0:00:56]} 36. Kg2 {[%clk 0:00:11]}  Kf6 {[%clk 0:00:57]} 37. f4 {[%clk 0:00:10]}  Bc3 {[%clk 0:00:55]} 38. Kf3 {[%clk 0:00:10]}  Kf5 {[%clk 0:00:55]} 39. Be3 {[%clk 0:00:06]}  Bb4 {[%clk 0:00:54]} 40. Bd4 {[%clk 0:00:06]}  Be1 {[%clk 0:00:54]} 41. Be3 {[%clk 0:00:06]}  Ke6 {[%clk 0:00:54]} 42. Bc5 {[%clk 0:00:07]}  Kd7 {[%clk 0:00:54]} 43. Bd4 {[%clk 0:00:06]}  Kc6 {[%clk 0:00:54]} 44. Kg2 {[%clk 0:00:04]}  Kb7 {[%clk 0:00:54]} 45. Kf3 {[%clk 0:00:03]}  Ka6 {[%clk 0:00:54]} 46. Bc5 {[%clk 0:00:03]}  Ka5 {[%clk 0:00:54]} 47. Kg2 {[%clk 0:00:02]}  Ka6 {[%clk 0:00:52]} 48. Kf3 {[%clk 0:00:02]}  Ka5 {[%clk 0:00:48]} 49. Be7 {[%clk 0:00:02]}  Bb4 {[%clk 0:00:47]} 50. Bd8+ {[%clk 0:00:03]}  Ka6 {[%clk 0:00:48]} 51. g4 {[%clk 0:00:02]}  f5 {[%clk 0:00:43]} 52. gxh5 {[%clk 0:00:02]}  gxh5 {[%clk 0:00:43]} 53. Ke3 {[%clk 0:00:03]}  Bc5+ {[%clk 0:00:42]} 54. Kf3 {[%clk 0:00:02]}  Bd4 {[%clk 0:00:41]} 55. Bc7 {[%clk 0:00:01]}  Kb7 {[%clk 0:00:42]} 56. Bd8 {[%clk 0:00:01]}  Kc8 {[%clk 0:00:42]} 57. Ba5 {[%clk 0:00:01]}  Kd7 {[%clk 0:00:43]} 58. Bb4 {[%clk 0:00:02]}  Kc6 {[%clk 0:00:43]} 59. Bf8 {[%clk 0:00:03]}  Bc5 {[%clk 0:00:43]} 60. Bg7 {[%clk 0:00:02]}  Bd6 {[%clk 0:00:43]} 61. Bc3 {[%clk 0:00:03]}  Kc5 {[%clk 0:00:43]} 62. Ke3 {[%clk 0:00:02]}  Bc7 {[%clk 0:00:40]} 63. b4+ {[%clk 0:00:02]}  Kc6 {[%clk 0:00:39]} 64. d4 {[%clk 0:00:03]}  Bd8 {[%clk 0:00:39]} 65. Be1 {[%clk 0:00:03]}  Be7 {[%clk 0:00:40]} 66. Kd3 {[%clk 0:00:03]}  Kd7 {[%clk 0:00:39]} 67. Ke3 {[%clk 0:00:04]}  Ke6 {[%clk 0:00:40]} 68. Kd3 {[%clk 0:00:04]}  Kf7 {[%clk 0:00:41]} 69. Ke3 {[%clk 0:00:05]}  Bd6 {[%clk 0:00:41]} 70. Kf3 {[%clk 0:00:05]}  Bc7 {[%clk 0:00:41]} 71. Ke3 {[%clk 0:00:06]}  Ke6 {[%clk 0:00:42]} 72. Kf3 {[%clk 0:00:06]}  Bb8 {[%clk 0:00:43]} 73. Ke3 {[%clk 0:00:06]}  Ba7 {[%clk 0:00:44]} 74. Kd3 {[%clk 0:00:06]}  Bb6 {[%clk 0:00:44]} 75. Ke3 {[%clk 0:00:07]}  Bd8 {[%clk 0:00:45]} 76. Kf3 {[%clk 0:00:07]}  Bf6 {[%clk 0:00:46]} 77. Ke3 {[%clk 0:00:07]}  Kf7 {[%clk 0:00:47]} 78. Kd3 {[%clk 0:00:07]}  Kg6 {[%clk 0:00:48]} 79. Ke3 {[%clk 0:00:08]}  Bg7 {[%clk 0:00:48]} 80. Kf3 {[%clk 0:00:08]}  Bh6 {[%clk 0:00:49]} 81. Ke3 {[%clk 0:00:08]}  Kf7 {[%clk 0:00:49]} 82. Kf3 {[%clk 0:00:08]}  Ke6 {[%clk 0:00:50]} 83. Ke3 {[%clk 0:00:09]}  Bg7 {[%clk 0:00:50]} 84. Kd3 {[%clk 0:00:08]}  Bf8 {[%clk 0:00:51]} 85. Ke3 {[%clk 0:00:09]}  Bd6 {[%clk 0:00:51]} 86. Kf3 {[%clk 0:00:09]}  Be7 {[%clk 0:00:52]} 87. Ke3 {[%clk 0:00:09]}  Kd7 {[%clk 0:00:52]} 88. Kd3 {[%clk 0:00:09]}  Bd8 {[%clk 0:00:23]} 89. Ke3 {[%clk 0:00:09]}  Bb6 {[%clk 0:00:24]} 90. Kd3 {[%clk 0:00:09]}  Kc6 {[%clk 0:00:25]} 91. Ke3 {[%clk 0:00:09]}  Ba7 {[%clk 0:00:26]} 92. Kd3 {[%clk 0:00:10]}  Bb8 {[%clk 0:00:27]} 93. Ke3 {[%clk 0:00:10]}  Bd6 {[%clk 0:00:28]} 94. Kf3 {[%clk 0:00:10]}  Kc7 {[%clk 0:00:28]} 95. Ke3 {[%clk 0:00:10]}  Kc8 {[%clk 0:00:29]} 96. Kf3 {[%clk 0:00:11]}  Bb8 {[%clk 0:00:30]} 97. Ke3 {[%clk 0:00:11]}  Kc7 {[%clk 0:00:31]} 98. Kf3 {[%clk 0:00:10]}  Kd6 {[%clk 0:00:32]} 99. Ke3 {[%clk 0:00:11]}  Ba7 {[%clk 0:00:33]} 100. Kd3 {[%clk 0:00:11]}  Ke6 {[%clk 0:00:32]} 101. Ke3 {[%clk 0:00:11]}  Bb6 {[%clk 0:00:33]} 102. Kd3 {[%clk 0:00:12]}  Bd8 {[%clk 0:00:34]} 103. Ke3 {[%clk 0:00:12]}  Bf6 {[%clk 0:00:35]} 104. Kd3 {[%clk 0:00:12]}  Bg7 {[%clk 0:00:36]} 105. Ke3 {[%clk 0:00:13]}  Bh6 {[%clk 0:00:37]} 106. Kf3 {[%clk 0:00:13]}  Bf8 {[%clk 0:00:37]} 107. Ke3 {[%clk 0:00:13]}  Be7 {[%clk 0:00:38]} 108. Kf3 {[%clk 0:00:13]}  Bd6 {[%clk 0:00:39]} 109. Ke3 {[%clk 0:00:13]}  Bc7 {[%clk 0:00:39]} 110. Kf3 {[%clk 0:00:13]}  Bd8 {[%clk 0:00:39]} 111. Ke3 {[%clk 0:00:13]}  Bb6 {[%clk 0:00:40]} 112. Kd3 {[%clk 0:00:13]}  Ba7 {[%clk 0:00:41]} 113. Ke3 {[%clk 0:00:13]}  Bb8 {[%clk 0:00:42]} 114. Kf3 {[%clk 0:00:13]} 1/2-1/2


[Site "https://www.chess.com"]

[Event "Titled Tuesday Blitz February 07 Late 2023"]
[White "Koellner, Ruben Gideon"]
[Black "Sarkar, Justin"]
[WhiteFideId "12993093"]
[BlackFideId "2010011"]
[WhiteElo "2426"]
[BlackElo "2309"]
[Result "1-0"]
[Round "04"]
[TimeControl "180+2"]
[Date "2023.02.07"]
[WhiteClock "0:00:18"]
[BlackClock "0:00:01"]

1. d4 {[%clk 0:02:56]}  Nf6 {[%clk 0:02:57]} 2. Nf3 {[%clk 0:02:55]}  d5 {[%clk 0:02:55]} 3. e3 {[%clk 0:02:55]}  c5 {[%clk 0:02:44]} 4. c3 {[%clk 0:02:53]}  e6 {[%clk 0:02:38]} 5. Nbd2 {[%clk 0:02:52]}  b6 {[%clk 0:02:23]} 6. Ne5 {[%clk 0:02:51]}  Bb7 {[%clk 0:02:17]} 7. f4 {[%clk 0:02:45]}  Nbd7 {[%clk 0:02:08]} 8. Bd3 {[%clk 0:02:44]}  Be7 {[%clk 0:02:00]} 9. Qf3 {[%clk 0:02:43]}  O-O {[%clk 0:01:49]} 10. O-O {[%clk 0:02:42]}  Ne8 {[%clk 0:01:40]} 11. Qh3 {[%clk 0:02:16]}  g6 {[%clk 0:01:31]} 12. Qh6 {[%clk 0:01:53]}  f5 {[%clk 0:01:17]} 13. g4 {[%clk 0:01:40]}  Nxe5 {[%clk 0:00:23]} 14. fxe5 {[%clk 0:01:32]}  fxg4 {[%clk 0:00:20]} 15. Rxf8+ {[%clk 0:01:12]}  Bxf8 {[%clk 0:00:20]} 16. Qf4 {[%clk 0:01:13]}  Qh4 {[%clk 0:00:15]} 17. Nf1 {[%clk 0:01:12]}  Bh6 {[%clk 0:00:12]} 18. Qf2 {[%clk 0:01:07]}  Qxf2+ {[%clk 0:00:10]} 19. Kxf2 {[%clk 0:01:08]}  Ng7 {[%clk 0:00:10]} 20. Kg3 {[%clk 0:01:05]}  Rf8 {[%clk 0:00:02]} 21. Bd2 {[%clk 0:01:03]}  Nf5+ {[%clk 0:00:02]} 22. Kxg4 {[%clk 0:01:01]}  cxd4 {[%clk 0:00:02]} 23. exd4 {[%clk 0:00:38]}  Bxd2 {[%clk 0:00:02]} 24. Nxd2 {[%clk 0:00:39]}  Ne3+ {[%clk 0:00:02]} 25. Kg3 {[%clk 0:00:39]}  Nf5+ {[%clk 0:00:02]} 26. Bxf5 {[%clk 0:00:37]}  Rxf5 {[%clk 0:00:02]} 27. Rf1 {[%clk 0:00:37]}  Rxf1 {[%clk 0:00:02]} 28. Nxf1 {[%clk 0:00:38]}  g5 {[%clk 0:00:01]} 29. h4 {[%clk 0:00:32]}  h6 {[%clk 0:00:01]} 30. hxg5 {[%clk 0:00:32]}  hxg5 {[%clk 0:00:01]} 31. Kg4 {[%clk 0:00:32]}  Ba6 {[%clk 0:00:01]} 32. Ne3 {[%clk 0:00:30]}  Bd3 {[%clk 0:00:01]} 33. Kxg5 {[%clk 0:00:30]}  Kf7 {[%clk 0:00:02]} 34. Kh6 {[%clk 0:00:23]}  a5 {[%clk 0:00:01]} 35. Ng4 {[%clk 0:00:18]}  b5 {[%clk 0:00:01]} 36. Nf2 {[%clk 0:00:18]}  Bc2 {[%clk 0:00:01]} 37. Nh3 {[%clk 0:00:18]}  b4 {[%clk 0:00:01]} 38. Ng5+ {[%clk 0:00:18]} 1-0


[Site "https://www.chess.com"]

[Event "Titled Tuesday Blitz February 07 Late 2023"]
[White "Chylewski, Patryk"]
[Black "Remolar Gallen, Jose"]
[WhiteFideId "1186191"]
[BlackFideId "2215187"]
[WhiteElo "2281"]
[BlackElo "2285"]
[Result "0-1"]
[Round "04"]
[TimeControl "180+2"]
[Date "2023.02.07"]
[WhiteClock "0:00:02"]
[BlackClock "0:00:08"]

1. e4 {[%clk 0:03:00]}  c5 {[%clk 0:02:59]} 2. Nf3 {[%clk 0:03:00]}  d6 {[%clk 0:02:59]} 3. c3 {[%clk 0:03:00]}  Nf6 {[%clk 0:02:59]} 4. h3 {[%clk 0:03:00]}  e6 {[%clk 0:02:57]} 5. Bd3 {[%clk 0:02:56]}  Be7 {[%clk 0:02:56]} 6. Bc2 {[%clk 0:02:55]}  O-O {[%clk 0:02:56]} 7. O-O {[%clk 0:02:55]}  b6 {[%clk 0:02:41]} 8. d4 {[%clk 0:02:55]}  Bb7 {[%clk 0:02:42]} 9. Re1 {[%clk 0:02:55]}  d5 {[%clk 0:02:30]} 10. e5 {[%clk 0:02:51]}  Ne4 {[%clk 0:02:30]} 11. Nbd2 {[%clk 0:02:50]}  Nxd2 {[%clk 0:02:26]} 12. Qxd2 {[%clk 0:02:51]}  Nc6 {[%clk 0:02:22]} 13. Qf4 {[%clk 0:02:43]}  cxd4 {[%clk 0:02:08]} 14. cxd4 {[%clk 0:02:38]}  Rc8 {[%clk 0:02:04]} 15. Bb1 {[%clk 0:01:57]}  Nb4 {[%clk 0:02:01]} 16. Qg3 {[%clk 0:01:45]}  Kh8 {[%clk 0:01:42]} 17. Bd2 {[%clk 0:01:14]}  Nc2 {[%clk 0:01:27]} 18. Bxc2 {[%clk 0:01:14]}  Rxc2 {[%clk 0:01:28]} 19. Bc3 {[%clk 0:01:14]}  b5 {[%clk 0:01:19]} 20. Rac1 {[%clk 0:01:07]}  Rxc1 {[%clk 0:01:17]} 21. Rxc1 {[%clk 0:01:08]}  b4 {[%clk 0:00:56]} 22. Bd2 {[%clk 0:01:04]}  Qd7 {[%clk 0:00:56]} 23. Bg5 {[%clk 0:00:46]}  Rc8 {[%clk 0:00:47]} 24. Rxc8+ {[%clk 0:00:43]}  Bxc8 {[%clk 0:00:48]} 25. Bxe7 {[%clk 0:00:42]}  Qxe7 {[%clk 0:00:48]} 26. Qf4 {[%clk 0:00:36]}  Qc7 {[%clk 0:00:44]} 27. Qd2 {[%clk 0:00:36]}  a5 {[%clk 0:00:42]} 28. Ne1 {[%clk 0:00:26]}  Ba6 {[%clk 0:00:30]} 29. Qc2 {[%clk 0:00:19]}  Qxc2 {[%clk 0:00:18]} 30. Nxc2 {[%clk 0:00:20]}  Bd3 {[%clk 0:00:18]} 31. Ne1 {[%clk 0:00:17]}  Bb1 {[%clk 0:00:14]} 32. a3 {[%clk 0:00:16]}  Kg8 {[%clk 0:00:12]} 33. Kf1 {[%clk 0:00:16]}  Kf8 {[%clk 0:00:12]} 34. Ke2 {[%clk 0:00:17]}  Ke7 {[%clk 0:00:13]} 35. Kd2 {[%clk 0:00:12]}  Kd7 {[%clk 0:00:11]} 36. axb4 {[%clk 0:00:12]}  axb4 {[%clk 0:00:12]} 37. g3 {[%clk 0:00:07]}  Kc6 {[%clk 0:00:11]} 38. Nf3 {[%clk 0:00:05]}  Kb5 {[%clk 0:00:08]} 39. b3 {[%clk 0:00:05]}  h6 {[%clk 0:00:07]} 40. Nh2 {[%clk 0:00:03]}  Bf5 {[%clk 0:00:06]} 41. h4 {[%clk 0:00:03]}  g5 {[%clk 0:00:04]} 42. hxg5 {[%clk 0:00:02]}  hxg5 {[%clk 0:00:05]} 43. Nf3 {[%clk 0:00:03]}  g4 {[%clk 0:00:05]} 44. Ne1 {[%clk 0:00:02]}  Be4 {[%clk 0:00:05]} 45. Ke3 {[%clk 0:00:02]}  Kc6 {[%clk 0:00:05]} 46. Kd2 {[%clk 0:00:02]}  Kd7 {[%clk 0:00:03]} 47. Kc1 {[%clk 0:00:02]}  Ke7 {[%clk 0:00:03]} 48. Kd2 {[%clk 0:00:02]}  f6 {[%clk 0:00:03]} 49. exf6+ {[%clk 0:00:02]}  Kxf6 {[%clk 0:00:04]} 50. Nd3 {[%clk 0:00:01]}  Bxd3 {[%clk 0:00:04]} 51. Kxd3 {[%clk 0:00:02]}  e5 {[%clk 0:00:04]} 52. dxe5+ {[%clk 0:00:01]}  Kxe5 {[%clk 0:00:05]} 53. Ke3 {[%clk 0:00:02]}  d4+ {[%clk 0:00:05]} 54. Kd3 {[%clk 0:00:02]}  Kd5 {[%clk 0:00:06]} 55. Kd2 {[%clk 0:00:03]}  Ke4 {[%clk 0:00:06]} 56. Ke2 {[%clk 0:00:03]}  d3+ {[%clk 0:00:06]} 57. Kd2 {[%clk 0:00:04]}  Kd4 {[%clk 0:00:07]} 58. Kd1 {[%clk 0:00:04]}  Kc3 {[%clk 0:00:07]} 59. Kc1 {[%clk 0:00:05]}  d2+ {[%clk 0:00:05]} 60. Kd1 {[%clk 0:00:05]}  Kd3 {[%clk 0:00:06]} 61. f4 {[%clk 0:00:04]}  gxf3 {[%clk 0:00:07]} 62. g4 {[%clk 0:00:02]}  f2 {[%clk 0:00:07]} 63. g5 {[%clk 0:00:02]}  f1=Q# {[%clk 0:00:08]} 0-1


[Site "https://www.chess.com"]

[Event "Titled Tuesday Blitz February 07 Late 2023"]
[White "Olenik Campa, Rudi"]
[Black "Fernandez Siles, Luis"]
[WhiteFideId "14633264"]
[BlackFideId "2209420"]
[WhiteElo "2356"]
[BlackElo "2218"]
[Result "1-0"]
[Round "04"]
[TimeControl "180+2"]
[Date "2023.02.07"]
[WhiteClock "0:01:06"]
[BlackClock "0:00:01"]

1. e4 {[%clk 0:03:00]}  c5 {[%clk 0:02:58]} 2. Nf3 {[%clk 0:03:00]}  Nc6 {[%clk 0:02:58]} 3. Bb5 {[%clk 0:02:59]}  g6 {[%clk 0:02:58]} 4. Bxc6 {[%clk 0:02:59]}  dxc6 {[%clk 0:02:59]} 5. d3 {[%clk 0:02:59]}  Bg7 {[%clk 0:02:59]} 6. O-O {[%clk 0:02:58]}  Nf6 {[%clk 0:02:59]} 7. a4 {[%clk 0:02:58]}  a5 {[%clk 0:02:58]} 8. Bd2 {[%clk 0:02:59]}  Nd7 {[%clk 0:02:48]} 9. Qc1 {[%clk 0:02:57]}  h6 {[%clk 0:02:46]} 10. Na3 {[%clk 0:02:57]}  b6 {[%clk 0:02:29]} 11. Nc4 {[%clk 0:02:55]}  Ba6 {[%clk 0:02:10]} 12. Ra3 {[%clk 0:02:42]}  Bxc4 {[%clk 0:02:07]} 13. dxc4 {[%clk 0:02:43]}  e5 {[%clk 0:01:59]} 14. Rd3 {[%clk 0:02:39]}  Qe7 {[%clk 0:01:58]} 15. Bc3 {[%clk 0:02:38]}  O-O {[%clk 0:01:50]} 16. Rfd1 {[%clk 0:02:37]}  Nf6 {[%clk 0:01:00]} 17. Qe3 {[%clk 0:02:32]}  Ng4 {[%clk 0:00:56]} 18. Qe2 {[%clk 0:02:31]}  Qe6 {[%clk 0:00:35]} 19. h3 {[%clk 0:02:27]}  Nf6 {[%clk 0:00:35]} 20. Rd6 {[%clk 0:02:22]}  Qe8 {[%clk 0:00:33]} 21. Nxe5 {[%clk 0:02:18]}  Nh5 {[%clk 0:00:31]} 22. Nxc6 {[%clk 0:01:45]}  Bxc3 {[%clk 0:00:29]} 23. bxc3 {[%clk 0:01:46]}  Rc8 {[%clk 0:00:21]} 24. Na7 {[%clk 0:01:41]}  Rc7 {[%clk 0:00:18]} 25. Nb5 {[%clk 0:01:41]}  Re7 {[%clk 0:00:18]} 26. f3 {[%clk 0:01:37]}  Nf4 {[%clk 0:00:18]} 27. Qe3 {[%clk 0:01:37]}  g5 {[%clk 0:00:18]} 28. Rxh6 {[%clk 0:01:36]}  f6 {[%clk 0:00:18]} 29. Nd6 {[%clk 0:01:32]}  Qd7 {[%clk 0:00:12]} 30. Rd2 {[%clk 0:01:26]}  Kg7 {[%clk 0:00:10]} 31. Rh4 {[%clk 0:01:13]}  gxh4 {[%clk 0:00:07]} 32. Qxf4 {[%clk 0:01:13]}  Qe6 {[%clk 0:00:07]} 33. Nf5+ {[%clk 0:01:13]}  Kf7 {[%clk 0:00:06]} 34. Nxe7 {[%clk 0:01:10]}  Kxe7 {[%clk 0:00:04]} 35. Qxh4 {[%clk 0:01:09]}  Qe5 {[%clk 0:00:03]} 36. Qh7+ {[%clk 0:01:06]}  Rf7 {[%clk 0:00:03]} 37. Rd7+ {[%clk 0:01:05]}  Kxd7 {[%clk 0:00:04]} 38. Qxf7+ {[%clk 0:01:06]}  Kc6 {[%clk 0:00:01]} 39. Qd5+ {[%clk 0:01:06]} 1-0


[Site "https://www.chess.com"]

[Event "Titled Tuesday Blitz February 07 Late 2023"]
[White "Aldokhin, Ivan"]
[Black "Miszler, Levente"]
[WhiteFideId "24115720"]
[BlackFideId "763276"]
[WhiteElo "2413"]
[BlackElo "2271"]
[Result "1-0"]
[Round "04"]
[TimeControl "180+2"]
[Date "2023.02.07"]
[WhiteClock "0:00:05"]
[BlackClock "0:00:26"]

1. e4 {[%clk 0:02:59]}  e6 {[%clk 0:02:57]} 2. d4 {[%clk 0:02:58]}  d5 {[%clk 0:02:57]} 3. Nc3 {[%clk 0:02:59]}  dxe4 {[%clk 0:02:54]} 4. Nxe4 {[%clk 0:02:59]}  Nf6 {[%clk 0:02:54]} 5. Nxf6+ {[%clk 0:02:57]}  gxf6 {[%clk 0:02:54]} 6. Nf3 {[%clk 0:02:58]}  f5 {[%clk 0:02:55]} 7. g3 {[%clk 0:02:58]}  Bg7 {[%clk 0:02:55]} 8. Bg2 {[%clk 0:02:59]}  c5 {[%clk 0:02:52]} 9. dxc5 {[%clk 0:02:32]}  Qxd1+ {[%clk 0:02:51]} 10. Kxd1 {[%clk 0:02:32]}  Nd7 {[%clk 0:02:52]} 11. Be3 {[%clk 0:02:20]}  Bxb2 {[%clk 0:02:47]} 12. Rb1 {[%clk 0:02:20]}  Ba3 {[%clk 0:02:45]} 13. c6 {[%clk 0:02:11]}  bxc6 {[%clk 0:02:44]} 14. Nd4 {[%clk 0:02:11]}  Ba6 {[%clk 0:02:33]} 15. Nxc6 {[%clk 0:01:57]}  Rc8 {[%clk 0:02:25]} 16. Nxa7 {[%clk 0:01:50]}  Rc4 {[%clk 0:02:04]} 17. Nb5 {[%clk 0:01:34]}  Be7 {[%clk 0:01:47]} 18. Bf1 {[%clk 0:01:20]}  Rc6 {[%clk 0:01:35]} 19. Nd4 {[%clk 0:00:56]}  Bxf1 {[%clk 0:01:34]} 20. Rxf1 {[%clk 0:00:48]}  Ra6 {[%clk 0:01:33]} 21. Rb7 {[%clk 0:00:42]}  Rxa2 {[%clk 0:01:29]} 22. Ke2 {[%clk 0:00:41]}  Bc5 {[%clk 0:01:18]} 23. Rfb1 {[%clk 0:00:33]}  e5 {[%clk 0:01:12]} 24. Nxf5 {[%clk 0:00:21]}  Bxe3 {[%clk 0:01:10]} 25. Nxe3 {[%clk 0:00:19]}  Ke7 {[%clk 0:01:06]} 26. Rd1 {[%clk 0:00:17]}  Rd8 {[%clk 0:01:03]} 27. Kf3 {[%clk 0:00:17]}  Ra3 {[%clk 0:01:03]} 28. g4 {[%clk 0:00:17]}  Ke6 {[%clk 0:01:01]} 29. c4 {[%clk 0:00:15]}  e4+ {[%clk 0:00:57]} 30. Kf4 {[%clk 0:00:13]}  Ra2 {[%clk 0:00:54]} 31. Kg3 {[%clk 0:00:10]}  h5 {[%clk 0:00:45]} 32. c5 {[%clk 0:00:06]}  h4+ {[%clk 0:00:43]} 33. Kg2 {[%clk 0:00:05]}  f5 {[%clk 0:00:36]} 34. c6 {[%clk 0:00:04]}  f4 {[%clk 0:00:31]} 35. Rbxd7 {[%clk 0:00:04]}  Rc8 {[%clk 0:00:26]} 36. R1d6+ {[%clk 0:00:04]}  Ke5 {[%clk 0:00:26]} 37. Nc4# {[%clk 0:00:05]} 1-0


[Site "https://www.chess.com"]

[Event "Titled Tuesday Blitz February 07 Late 2023"]
[White "Ruiz Aguilar, Pablo Alexander"]
[Black "Saveliev, Alexei"]
[WhiteFideId "4401352"]
[BlackFideId "24128546"]
[WhiteElo "2161"]
[BlackElo "2385"]
[Result "0-1"]
[Round "04"]
[TimeControl "180+2"]
[Date "2023.02.07"]
[WhiteClock "0:00:35"]
[BlackClock "0:02:26"]

1. e4 {[%clk 0:03:00]}  g6 {[%clk 0:02:59]} 2. d4 {[%clk 0:03:00]}  Bg7 {[%clk 0:03:00]} 3. Nf3 {[%clk 0:02:59]}  d6 {[%clk 0:03:01]} 4. h3 {[%clk 0:03:00]}  Nc6 {[%clk 0:03:01]} 5. c3 {[%clk 0:02:59]}  Nf6 {[%clk 0:03:01]} 6. Bd3 {[%clk 0:02:58]}  O-O {[%clk 0:03:02]} 7. O-O {[%clk 0:02:56]}  Nd7 {[%clk 0:03:02]} 8. Bg5 {[%clk 0:02:52]}  h6 {[%clk 0:03:02]} 9. Be3 {[%clk 0:02:50]}  e5 {[%clk 0:03:02]} 10. Na3 {[%clk 0:02:43]}  f5 {[%clk 0:02:56]} 11. Nc2 {[%clk 0:02:40]}  f4 {[%clk 0:02:56]} 12. Bc1 {[%clk 0:02:30]}  g5 {[%clk 0:02:56]} 13. Nh2 {[%clk 0:02:28]}  Nf6 {[%clk 0:02:53]} 14. d5 {[%clk 0:02:23]}  Ne7 {[%clk 0:02:52]} 15. c4 {[%clk 0:02:24]}  h5 {[%clk 0:02:50]} 16. b4 {[%clk 0:02:22]}  Qe8 {[%clk 0:02:45]} 17. f3 {[%clk 0:02:16]}  Qg6 {[%clk 0:02:44]} 18. c5 {[%clk 0:02:11]}  g4 {[%clk 0:02:44]} 19. fxg4 {[%clk 0:01:47]}  hxg4 {[%clk 0:02:44]} 20. Bxf4 {[%clk 0:01:40]}  gxh3 {[%clk 0:02:29]} 21. Rf2 {[%clk 0:00:58]}  Ng4 {[%clk 0:02:26]} 22. Nxg4 {[%clk 0:00:46]}  Bxg4 {[%clk 0:02:26]} 23. Qe1 {[%clk 0:00:35]}  exf4 {[%clk 0:02:26]} 0-1


[Site "https://www.chess.com"]